Workbook

Sheet Instructions
A2: You must be using as a minimum, EXCEL 2003, SP3.
A3: Save an unedited copy of these spreadsheets in case problems occur with the calculations or spreadsheet construction.
A4: The following instructions apply to the spreadsheet named "Capacity" and generates a solution for non-pressure system flow.
A6: The county name and storm return interval are selected from pull-down lists. IDF intensities are user retrieved from the NOAA website.
A7: The FHWA curve fitting procedure found in the FHWA Hydraulic Toolbox is used to generate IDF equations for each design storm.
A8: Blue shaded cells are user input values. Other cell entries are populated immediately by fomula or later at run time.
A9: Yellow cells are formulas that need to be verified by the user as explained later.
A10: Entries in column 6 are the sum of the CA terms. These values / formula need to be checked and verified by the user.
B11: Colors other than yellow in column 6 represent decision points in the system that represent the cummation of the CA terms at a junction.
A12: Entries in column 10 are the pipe travel times at the inlet or outlet end of a pipe. These values / formula need to be checked and verified by the user.
B13: Colors other than yellow in column 10 represent decision points in the system that represent the cummation of the travel time at a pipe inlet or outlet.
B14: These cells must be created by the user.
A15: The 10, 25 or 100 year design storm may be selected from the drop down in cell V3.
A17: A correct network can be used to solve multiple storms.
A18: A line with inlet data and a following line with pipe data line a basicl segment that serves as a template to be copied for successive pipe. If there is no inlet flow, simply delete the inlet flow data.
A20: Individual pipe roughnesses are entered for each pipe in this spreadsheet.
A22: The user must examine the time of concentration for all intersecting laterals to enter the design time to that point.
A23: The most appropriate time of concentration is usually the lateral having the longest travel time to that junction.
A24: Hydra uses a method to adjust the Tc when a single area produces a higher flow than what would be computed using the longest Tc.
A25: In these cases, refer to the Hydra documentation (page 8).
A27: Enter all user supplied data then press "CTRL+ r" to solve. The macro computes pipe velocity, full pipe flow and % pipe load.
A28: If undersized, resize the pipe as noted and press "CTRL+r" to rerun.
A30: The Drawing Toolbar allows the user to optionally graph the system as shown on the "Layout" spreadsheet.
A31: All drawing elements have been "grouped" so you may move all at one time. You will need to "ungroup", to edit these individual elements.
A32: The user may instead choose to import a picture file graphic to show the system layout.
A34: To create an 8.5" X 11" report summary, select the spreadsheet, "Summary" and Press "CTRL + q" to create summary from Capacity sheet.
A36: Multiple runs (for different flows) may be saved by copying the results to a new spreadsheet.
A38: A comparison of the FHWA computed intensities to the NOAA webpage values is displayed on sheet "FHWA" with the computed IDF equation coefficients.

Sheet Summary
A1: STORM SEWER DESIGN | L1: pages: | N1: 1
A2: PIPE CAPACITY COMPUTATIONS SUMMARY | L2: Storm | N2: =Capacity!V3 -> 10
A3: County: | B3: =Capacity!B3 -> Menifee | D3: Route: | E3: =Capacity!E3 -> US 460 | G3: Project: | I3: =Capacity!H3 -> US 460 - System 2 | L3: Item No: | N3: =Capacity!Q3 -> 10-8802
D4: Lat: | E4: =Capacity!E4 -> 37.9579° | G4: Long: | I4: =Capacity!H4 -> -83.6640° | K4: =Capacity!J4 -> Frenchburg, Kentucky
A5: 1 | B5: 2 | C5: 3 | D5: 4 | E5: 9 | F5: 12 | G5: 13 | H5: 14 | I5: 15 | J5: 16 | K5: 17 | L5: 18 | M5: 21 | N5: 22
A6: Inlet or | B6: Location | C6: Area | D6: C | E6: Inlet | F6: Pipe | G6: Pipe Invert | I6: Pipe | M6: Full | N6: %
A7: M.H. | E7: Q | F7: Q | G7: Upst. | H7: Dnst. | I7: Len. | J7: Slope | K7: Size | L7: n | M7: Flow | N7: Full
A8: ID | C8: Acres | E8: cfs | F8: cfs | G8: ft. | H8: ft. | I8: lf | J8: ft / ft | K8: in | M8: cfs
A9: CBI 1 | B9: 14+25 | C9: 1.1 | D9: 0.8 | E9: 4.866240626
F10: 4.866240626 | G10: 953.75 | H10: 953.5 | I10: 41.5 | J10: 0.006024096386 | K10: 15 | L10: 0.012 | M10: 5.432002511 | N10: 0.8958465347
A11: CBI 2 | B11: 14+25 | C11: 0.52 | D11: 0.8 | E11: 2.403102015
F12: 7.124993921 | G12: 953.5 | H12: 935.8 | I12: 292 | J12: 0.06061643836 | K12: 15 | L12: 0.012 | M12: 17.23094965 | N12: 0.4134997818
A13: CBI 4 | B13: 17+20 | C13: 0.41 | D13: 0.8 | E13: 1.894753512
A14: CBI 3 | B14: 17+20 | C14: 2 | D14: 0.8 | E14: 9.242700057
F15: 9.242700057 | G15: 936.05 | H15: 935.8 | I15: 41.5 | J15: 0.006024096386 | K15: 18 | L15: 0.012 | M15: 8.833035004 | N15: 1.046378742
A16: CBI 4 | B16: 17+20
A17: CBI 4 | B17: 17+20
F18: 17.45908837 | G18: 935.8 | H18: 928.5 | I18: 138 | J18: 0.05289855072 | K18: 15 | L18: 0.012 | M18: 16.09666452 | N18: 1.084640134
A19: MH 5 | B19: 18+54
A20: JNC 6 | B20: 18+54 | C20: 5 | D20: 0.8 | E20: 15.0665014
F21: 15.0665014 | G21: 928.7 | H21: 928.5 | I21: 16 | J21: 0.0125 | K21: 21 | L21: 0.012 | M21: 19.19304026 | N21: 0.7849981659
A22: MH 5 | B22: 18+54
A23: DBI 7 | B23: 19+40 | C23: 0.3 | D23: 0.8 | E23: 1.386405009
F24: 1.386405009 | G24: 931.5 | H24: 931 | I24: 21 | J24: 0.02380952381 | K24: 15 | L24: 0.012 | M24: 10.79914471 | N24: 0.1283810011
A25: CBI 8 | B25: 19+22 | C25: 0.2 | D25: 0.8 | E25: 0.9242700057
F26: 2.304686899 | G26: 931 | H26: 930.5 | I26: 41.5 | J26: 0.01204819277 | K26: 15 | L26: 0.012 | M26: 7.682011621 | N26: 0.3000108582
A27: CBI 9 | B27: 19+22 | C27: 0.1 | D27: 0.8
A28: CBI 11 | B28: 21+90 | C28: 0.25 | D28: 0.8 | E28: 1.155337507
F29: 1.155337507 | G29: 933 | H29: 932.75 | I29: 41.5 | J29: 0.006024096386 | K29: 15 | L29: 0.012 | M29: 5.432002511 | N29: 0.2126909008
A30: CBI 10 | B30: 21+90 | C30: 0.15 | D30: 0.8 | E30: 0.6932025043
F31: 1.832714262 | G31: 932.75 | H31: 930.5 | I31: 265 | J31: 0.008490566038 | K31: 15 | L31: 0.012 | M31: 6.448850783 | N31: 0.2841923816
A32: CBI 9 | B32: 19+22
A33: CBI 9 | B33: 19+22
F34: 4.393195205 | G34: 930.5 | H34: 928.5 | I34: 72 | J34: 0.02777777778 | K34: 15 | L34: 0.012 | M34: 11.66440944 | N34: 0.3766324586
A35: MH 5 | B35: 18+54
A36: MH 5 | B36: 18+54
F37: 30.20087811 | G37: 928.5 | H37: 928.24 | I37: 20 | J37: 0.013 | K37: 24 | L37: 0.012 | M37: 27.94509793 | N37: 1.080721856
A38: Outfall | B38: 18+54
F39: 30.17581105

Sheet Capacity
A1: Kentucky Transportation Cabinet | E1: STORM SEWER DESIGN | U1: Page 1 of 1
A2: Division of Highway Design 01-16 | E2: PIPE CAPACITY COMPUTATIONS | X2: v3
A3: County: | B3: Menifee | D3: Route: | E3: US 460 | F3: Project: | H3: US 460 - System 2 | O3: Item No: | Q3: 10-8802 | T3: Design | V3: 10
D4: Lat: | E4: ='NOAA Data2'!Q5 -> 37.9579° | F4: Long: | H4: ='NOAA Data2'!Q6 -> -83.6640° | J4: ='NOAA Data2'!Q2 -> Frenchburg, Kentucky | O4: Locate Site: | Q4: n | R4: (Y or N) | T4: Storm
A5: 1 | B5: 2 | C5: 3 | D5: 4 | E5: 5 | F5: 6 | G5: 7 | H5: 8 | I5: 9 | J5: 10 | K5: 11 | L5: 12 | M5: 13 | N5: 14 | O5: 15 | P5: 16 | Q5: 17 | R5: 18 | S5: 19 | T5: 20 | U5: 21 | V5: 22
A6: Inlet or | B6: Location | C6: Area | D6: C | E6: CA | F6: å CA | G6: Inlet Flow | J6: Pipe Flow | M6: Pipe Invert | O6: Pipe | T6: Travel | U6: Full | V6: %
A7: M.H. | G7: Time | H7: I | I7: Q | J7: Time | K7: I | L7: Q | M7: Upst. | N7: Dnst. | O7: Len. | P7: Slope | Q7: Size | R7: n | S7: Vel. | T7: Time | U7: Flow | V7: Full
A8: ID | C8: Acres | E8: Acres | F8: Acres | G8: min | H8: in /hr | I8: cfs | J8: min | K8: in /hr | L8: cfs | M8: ft. | N8: ft. | O8: lf | P8: ft / ft | Q8: in | S8: fps | T8: min | U8: cfs
A9: CBI 1 | B9: 14+25 | C9: 1.1 | D9: 0.8 | E9: =D9*C9 -> 0.88 | F9: =E9 -> 0.88 | G9: 9 | H9: =IF($V$3=10,FHWA!$B$6/(G9+FHWA!$C$6)^FHWA!$D$6,IF($V$3=25,FHWA!$B$7/(G9+FHWA!$C$7)^FHWA!$D$7,FHWA!$B$9/(G9+FHWA!$C$9)^FHWA!$D$9)) -> 5.529818893 | I9: =D9*H9*C9 -> 4.866240626 | J9: =G9 -> 9 | K9: =IF($V$3=10,FHWA!$B$6/(J9+FHWA!$C$6)^FHWA!$D$6,IF($V$3=25,FHWA!$B$7/(J9+FHWA!$C$7)^FHWA!$D$7,FHWA!$B$9/(J9+FHWA!$C$9)^FHWA!$D$9)) -> 5.529818893
L10: =F9*K9 -> 4.866240626 | M10: 953.75 | N10: 953.5 | O10: 41.5 | P10: =(M10-N10)/O10 -> 0.006024096386 | Q10: 15 | R10: 0.012 | S10: 5.006986871 | T10: =O10/S10/60 -> 0.1381402996 | U10: 5.432002511 | V10: 0.8958465347
A11: CBI 2 | B11: 14+25 | C11: 0.52 | D11: 0.8 | E11: =D11*C11 -> 0.416 | F11: =F9+E11 -> 1.296 | G11: 8 | H11: =IF($V$3=10,FHWA!$B$6/(G11+FHWA!$C$6)^FHWA!$D$6,IF($V$3=25,FHWA!$B$7/(G11+FHWA!$C$7)^FHWA!$D$7,FHWA!$B$9/(G11+FHWA!$C$9)^FHWA!$D$9)) -> 5.776687536 | I11: =D11*H11*C11 -> 2.403102015 | J11: =MAX(J9+T10,G11) -> 9.1381403 | K11: =IF($V$3=10,FHWA!$B$6/(J11+FHWA!$C$6)^FHWA!$D$6,IF($V$3=25,FHWA!$B$7/(J11+FHWA!$C$7)^FHWA!$D$7,FHWA!$B$9/(J11+FHWA!$C$9)^FHWA!$D$9)) -> 5.497680495
L12: =F11*K11 -> 7.124993921 | M12: 953.5 | N12: 935.8 | O12: 292 | P12: =(M12-N12)/O12 -> 0.06061643836 | Q12: 15 | R12: 0.012 | S12: 13.41133488 | T12: =O12/S12/60 -> 0.3628771266 | U12: 17.23094965 | V12: 0.4134997818
A13: CBI 4 | B13: 17+20 | C13: 0.41 | D13: 0.8 | E13: =D13*C13 -> 0.328 | F13: =F11+E13 -> 1.624 | G13: 8 | H13: =IF($V$3=10,FHWA!$B$6/(G13+FHWA!$C$6)^FHWA!$D$6,IF($V$3=25,FHWA!$B$7/(G13+FHWA!$C$7)^FHWA!$D$7,FHWA!$B$9/(G13+FHWA!$C$9)^FHWA!$D$9)) -> 5.776687536 | I13: =D13*H13*C13 -> 1.894753512 | J13: =MAX(J11+T12,G13) -> 9.501017426 | K13: =IF($V$3=10,FHWA!$B$6/(J13+FHWA!$C$6)^FHWA!$D$6,IF($V$3=25,FHWA!$B$7/(J13+FHWA!$C$7)^FHWA!$D$7,FHWA!$B$9/(J13+FHWA!$C$9)^FHWA!$D$9)) -> 5.41534999
A14: CBI 3 | B14: 17+20 | C14: 2 | D14: 0.8 | E14: =D14*C14 -> 1.6 | F14: =E14 -> 1.6 | G14: 8 | H14: =IF($V$3=10,FHWA!$B$6/(G14+FHWA!$C$6)^FHWA!$D$6,IF($V$3=25,FHWA!$B$7/(G14+FHWA!$C$7)^FHWA!$D$7,FHWA!$B$9/(G14+FHWA!$C$9)^FHWA!$D$9)) -> 5.776687536 | I14: =D14*H14*C14 -> 9.242700057 | J14: =G14 -> 8 | K14: =IF($V$3=10,FHWA!$B$6/(J14+FHWA!$C$6)^FHWA!$D$6,IF($V$3=25,FHWA!$B$7/(J14+FHWA!$C$7)^FHWA!$D$7,FHWA!$B$9/(J14+FHWA!$C$9)^FHWA!$D$9)) -> 5.776687536
L15: =F14*K14 -> 9.242700057 | M15: 936.05 | N15: 935.8 | O15: 41.5 | P15: =(M15-N15)/O15 -> 0.006024096386 | Q15: 21 | R15: 0.012 | S15: 5.989952543 | T15: =O15/S15/60 -> 0.115471143 | U15: 13.32400306 | V15: 0.6936879265
A16: CBI 4 | B16: 17+20 | J16: =J14+T18 -> 8.144811148
A17: CBI 4 | B17: 17+20 | F17: =F14+F13 -> 3.224 | J17: =MAX(J16,J13) -> 9.501017426 | K17: =IF($V$3=10,FHWA!$B$6/(J17+FHWA!$C$6)^FHWA!$D$6,IF($V$3=25,FHWA!$B$7/(J17+FHWA!$C$7)^FHWA!$D$7,FHWA!$B$9/(J17+FHWA!$C$9)^FHWA!$D$9)) -> 5.41534999
L18: =F17*K17 -> 17.45908837 | M18: 935.8 | N18: 928.5 | O18: 138 | P18: =(M18-N18)/O18 -> 0.05289855072 | Q18: 18 | R18: 0.012 | S18: 15.88275508 | T18: =O18/S18/60 -> 0.1448111482 | U18: 26.1749513 | V18: 0.6670151232
A19: MH 5 | B19: 18+54 | J19: =MAX(J17+T18,G19) -> 9.645828575 | K19: =IF($V$3=10,FHWA!$B$6/(J19+FHWA!$C$6)^FHWA!$D$6,IF($V$3=25,FHWA!$B$7/(J19+FHWA!$C$7)^FHWA!$D$7,FHWA!$B$9/(J19+FHWA!$C$9)^FHWA!$D$9)) -> 5.383312929
A20: JNC 6 | B20: 18+54 | C20: 5 | D20: 0.8 | E20: =D20*C20 -> 4 | F20: =E20 -> 4 | G20: 21 | H20: =IF($V$3=10,FHWA!$B$6/(G20+FHWA!$C$6)^FHWA!$D$6,IF($V$3=25,FHWA!$B$7/(G20+FHWA!$C$7)^FHWA!$D$7,FHWA!$B$9/(G20+FHWA!$C$9)^FHWA!$D$9)) -> 3.766625351 | I20: =D20*H20*C20 -> 15.0665014 | J20: =G20 -> 21 | K20: =IF($V$3=10,FHWA!$B$6/(J20+FHWA!$C$6)^FHWA!$D$6,IF($V$3=25,FHWA!$B$7/(J20+FHWA!$C$7)^FHWA!$D$7,FHWA!$B$9/(J20+FHWA!$C$9)^FHWA!$D$9)) -> 3.766625351
L21: =F20*K20 -> 15.0665014 | M21: 928.7 | N21: 928.5 | O21: 16 | P21: =(M21-N21)/O21 -> 0.0125 | Q21: 21 | R21: 0.012 | S21: 8.849621187 | T21: =O21/S21/60 -> 0.03013311655 | U21: 19.19304026 | V21: 0.7849981659
A22: MH 5 | B22: 18+54 | J22: =J20+T21 -> 21.03013312
A23: DBI 7 | B23: 19+40 | C23: 0.3 | D23: 0.8 | E23: =D23*C23 -> 0.24 | F23: =E23 -> 0.24 | G23: 8 | H23: =IF($V$3=10,FHWA!$B$6/(G23+FHWA!$C$6)^FHWA!$D$6,IF($V$3=25,FHWA!$B$7/(G23+FHWA!$C$7)^FHWA!$D$7,FHWA!$B$9/(G23+FHWA!$C$9)^FHWA!$D$9)) -> 5.776687536 | I23: =D23*H23*C23 -> 1.386405009 | J23: =G23 -> 8 | K23: =IF($V$3=10,FHWA!$B$6/(J23+FHWA!$C$6)^FHWA!$D$6,IF($V$3=25,FHWA!$B$7/(J23+FHWA!$C$7)^FHWA!$D$7,FHWA!$B$9/(J23+FHWA!$C$9)^FHWA!$D$9)) -> 5.776687536
L24: =F23*K23 -> 1.386405009 | M24: 931.5 | N24: 931 | O24: 21 | P24: =(M24-N24)/O24 -> 0.02380952381 | Q24: 15 | R24: 0.012 | S24: 6.063762717 | T24: =O24/S24/60 -> 0.05771993666 | U24: 10.79914471 | V24: 0.1283810011
A25: CBI 8 | B25: 19+22 | C25: 0.2 | D25: 0.8 | E25: =D25*C25 -> 0.16 | F25: =F23+E25 -> 0.4 | G25: 8 | H25: =IF($V$3=10,FHWA!$B$6/(G25+FHWA!$C$6)^FHWA!$D$6,IF($V$3=25,FHWA!$B$7/(G25+FHWA!$C$7)^FHWA!$D$7,FHWA!$B$9/(G25+FHWA!$C$9)^FHWA!$D$9)) -> 5.776687536 | I25: =D25*H25*C25 -> 0.9242700057 | J25: =MAX(J23+T24,G25) -> 8.057719937 | K25: =IF($V$3=10,FHWA!$B$6/(J25+FHWA!$C$6)^FHWA!$D$6,IF($V$3=25,FHWA!$B$7/(J25+FHWA!$C$7)^FHWA!$D$7,FHWA!$B$9/(J25+FHWA!$C$9)^FHWA!$D$9)) -> 5.761717249
L26: =F25*K25 -> 2.304686899 | M26: 931 | N26: 930.5 | O26: 41.5 | P26: =(M26-N26)/O26 -> 0.01204819277 | Q26: 15 | R26: 0.012 | S26: 5.488807722 | T26: =O26/S26/60 -> 0.1260140092 | U26: 7.682011621 | V26: 0.3000108582
A27: CBI 9 | B27: 19+22 | C27: 0.1 | D27: 0.8 | E27: =D27*C27 -> 0.08 | F27: =F25+E27 -> 0.48 | J27: =MAX(J25+T26,G27) -> 8.183733946
A28: CBI 11 | B28: 21+90 | C28: 0.25 | D28: 0.8 | E28: =D28*C28 -> 0.2 | F28: =E28 -> 0.2 | G28: 8 | H28: =IF($V$3=10,FHWA!$B$6/(G28+FHWA!$C$6)^FHWA!$D$6,IF($V$3=25,FHWA!$B$7/(G28+FHWA!$C$7)^FHWA!$D$7,FHWA!$B$9/(G28+FHWA!$C$9)^FHWA!$D$9)) -> 5.776687536 | I28: =D28*H28*C28 -> 1.155337507 | J28: =G28 -> 8 | K28: =IF($V$3=10,FHWA!$B$6/(J28+FHWA!$C$6)^FHWA!$D$6,IF($V$3=25,FHWA!$B$7/(J28+FHWA!$C$7)^FHWA!$D$7,FHWA!$B$9/(J28+FHWA!$C$9)^FHWA!$D$9)) -> 5.776687536
L29: =F28*K28 -> 1.155337507 | M29: 933 | N29: 932.75 | O29: 41.5 | P29: =(M29-N29)/O29 -> 0.006024096386 | Q29: 15 | R29: 0.012 | S29: 3.60128624 | T29: =O29/S29/60 -> 0.1920610084 | U29: 5.432002511 | V29: 0.2126909008
A30: CBI 10 | B30: 21+90 | C30: 0.15 | D30: 0.8 | E30: =D30*C30 -> 0.12 | F30: =F28+E30 -> 0.32 | G30: 8 | H30: =IF($V$3=10,FHWA!$B$6/(G30+FHWA!$C$6)^FHWA!$D$6,IF($V$3=25,FHWA!$B$7/(G30+FHWA!$C$7)^FHWA!$D$7,FHWA!$B$9/(G30+FHWA!$C$9)^FHWA!$D$9)) -> 5.776687536 | I30: =D30*H30*C30 -> 0.6932025043 | J30: =MAX(J28+T29,G30) -> 8.192061008 | K30: =IF($V$3=10,FHWA!$B$6/(J30+FHWA!$C$6)^FHWA!$D$6,IF($V$3=25,FHWA!$B$7/(J30+FHWA!$C$7)^FHWA!$D$7,FHWA!$B$9/(J30+FHWA!$C$9)^FHWA!$D$9)) -> 5.72723207
L31: =F30*K30 -> 1.832714262 | M31: 932.75 | N31: 930.5 | O31: 265 | P31: =(M31-N31)/O31 -> 0.008490566038 | Q31: 15 | R31: 0.012 | S31: 4.539723048 | T31: =O31/S31/60 -> 0.9728934167 | U31: 6.448850783 | V31: 0.2841923816
A32: CBI 9 | B32: 19+22 | F32: =F30+E32 -> 0.32 | J32: =MAX(J30+T31,G32) -> 9.164954425 | K32: =IF($V$3=10,FHWA!$B$6/(J32+FHWA!$C$6)^FHWA!$D$6,IF($V$3=25,FHWA!$B$7/(J32+FHWA!$C$7)^FHWA!$D$7,FHWA!$B$9/(J32+FHWA!$C$9)^FHWA!$D$9)) -> 5.491494006
A33: CBI 9 | B33: 19+22 | F33: =F32+F27 -> 0.8 | J33: =MAX(J32,J27) -> 9.164954425 | K33: =IF($V$3=10,FHWA!$B$6/(J33+FHWA!$C$6)^FHWA!$D$6,IF($V$3=25,FHWA!$B$7/(J33+FHWA!$C$7)^FHWA!$D$7,FHWA!$B$9/(J33+FHWA!$C$9)^FHWA!$D$9)) -> 5.491494006
L34: =F33*K33 -> 4.393195205 | M34: 930.5 | N34: 928.5 | O34: 72 | P34: =(M34-N34)/O34 -> 0.02777777778 | Q34: 15 | R34: 0.012 | S34: 8.859956565 | T34: =O34/S34/60 -> 0.1354408446 | U34: 11.66440944 | V34: 0.3766324586
A35: MH 5 | B35: 18+54 | F35: =F32+E35 -> 0.32 | J35: =J32+T34 -> 9.30039527
A36: MH 5 | B36: 18+54 | F36: =F17+F20+F33 -> 8.024 | J36: =MAX(J35,J22,J19) -> 21.03013312 | K36: =IF($V$3=10,FHWA!$B$6/(J36+FHWA!$C$6)^FHWA!$D$6,IF($V$3=25,FHWA!$B$7/(J36+FHWA!$C$7)^FHWA!$D$7,FHWA!$B$9/(J36+FHWA!$C$9)^FHWA!$D$9)) -> 3.763818308
L37: =F36*K36 -> 30.20087811 | M37: 928.5 | N37: 928.24 | O37: 20 | P37: =(M37-N37)/O37 -> 0.013 | Q37: 30 | R37: 0.012 | S37: 10.79095375 | T37: =O37/S37/60 -> 0.03089007155 | U37: 50.6678338 | V37: 0.5960562322
A38: Outfall | B38: 18+54 | F38: =F36 -> 8.024 | J38: =MAX(J36+T37,G38) -> 21.06102319 | K38: =IF($V$3=10,FHWA!$B$6/(J38+FHWA!$C$6)^FHWA!$D$6,IF($V$3=25,FHWA!$B$7/(J38+FHWA!$C$7)^FHWA!$D$7,FHWA!$B$9/(J38+FHWA!$C$9)^FHWA!$D$9)) -> 3.760945957
L39: =F38*K38 -> 30.17783036

Sheet Layout
Q28: RCL 1
Q29: RCL 2

Sheet Zones (hidden)

Sheet IDF Data (hidden)
B1: 10-YR | E1: 25-YR | H1: 100-YR
A2: County | B2: A0 | C2: A1 | D2: A2 | E2: A0 | F2: A1 | G2: A2 | H2: A0 | I2: A1 | J2: A2
A3: Adair East | B3: 6.96 | C3: 0.086 | D3: -0.093 | E3: 7.64 | F3: 0.114 | G3: -0.095 | H3: 8.66 | I3: 0.145 | J3: -0.097 | K3: Lexington
A4: Adair West | B4: 9.37 | C4: -0.059 | D4: -0.079 | E4: 10.47 | F4: -0.037 | G4: -0.081 | H4: 12.11 | I4: -0.014 | J4: -0.084 | K4: Louisville
A5: Allen | B5: 11.68 | C5: -0.182 | D5: -0.059 | E5: 13.89 | F5: -0.205 | G5: -0.054 | H5: 17.17 | I5: -0.229 | J5: -0.049 | K5: Nashville
A6: Anderson East | B6: 6.96 | C6: 0.086 | D6: -0.093 | E6: 7.64 | F6: 0.114 | G6: -0.095 | H6: 8.66 | I6: 0.145 | J6: -0.097 | K6: Lexington
A7: Anderson West | B7: 9.37 | C7: -0.059 | D7: -0.079 | E7: 10.47 | F7: -0.037 | G7: -0.081 | H7: 12.11 | I7: -0.014 | J7: -0.084 | K7: Louisville
A8: Ballard | B8: 9.45 | C8: -0.04 | D8: -0.074 | E8: 10.95 | F8: -0.043 | G8: -0.072 | H8: 13.17 | I8: -0.047 | J8: -0.07 | K8: Cairo
A9: Barren North | B9: 9.37 | C9: -0.059 | D9: -0.079 | E9: 10.47 | F9: -0.037 | G9: -0.081 | H9: 12.11 | I9: -0.014 | J9: -0.084 | K9: Louisville
A10: Barren South | B10: 11.68 | C10: -0.182 | D10: -0.059 | E10: 13.89 | F10: -0.205 | G10: -0.054 | H10: 17.17 | I10: -0.229 | J10: -0.049 | K10: Nashville
A11: Bath | B11: 6.96 | C11: 0.086 | D11: -0.093 | E11: 7.64 | F11: 0.114 | G11: -0.095 | H11: 8.66 | I11: 0.145 | J11: -0.097 | K11: Lexington
A12: Bell | B12: 5.9 | C12: 0.204 | D12: -0.111 | E12: 6.24 | F12: 0.254 | G12: -0.116 | H12: 6.81 | I12: 0.307 | J12: -0.122 | K12: Knoxville
A13: Boone | B13: 8.53 | C13: 0 | D13: -0.088 | E13: 9.26 | F13: 0.038 | G13: -0.092 | H13: 10.37 | I13: 0.079 | J13: -0.097 | K13: Cincinnati
A14: Bourbon | B14: 6.96 | C14: 0.086 | D14: -0.093 | E14: 7.64 | F14: 0.114 | G14: -0.095 | H14: 8.66 | I14: 0.145 | J14: -0.097 | K14: Lexington
A15: Boyd East | B15: 9.25 | C15: -0.04 | D15: -0.088 | E15: 10.72 | F15: -0.039 | G15: -0.087 | H15: 12.91 | I15: -0.038 | J15: -0.086 | K15: Parkersburg
A16: Boyd West | B16: 6.96 | C16: 0.086 | D16: -0.093 | E16: 7.64 | F16: 0.114 | G16: -0.095 | H16: 8.66 | I16: 0.145 | J16: -0.097 | K16: Lexington
A17: Boyle | B17: 6.96 | C17: 0.086 | D17: -0.093 | E17: 7.64 | F17: 0.114 | G17: -0.095 | H17: 8.66 | I17: 0.145 | J17: -0.097 | K17: Lexington
A18: Bracken North | B18: 8.53 | C18: 0 | D18: -0.088 | E18: 9.26 | F18: 0.038 | G18: -0.092 | H18: 10.37 | I18: 0.079 | J18: -0.097 | K18: Cincinnati
A19: Bracken South | B19: 6.96 | C19: 0.086 | D19: -0.093 | E19: 7.64 | F19: 0.114 | G19: -0.095 | H19: 8.66 | I19: 0.145 | J19: -0.097 | K19: Lexington
A20: Breathitt | B20: 6.96 | C20: 0.086 | D20: -0.093 | E20: 7.64 | F20: 0.114 | G20: -0.095 | H20: 8.66 | I20: 0.145 | J20: -0.097 | K20: Lexington
A21: Breckinridge East | B21: 9.37 | C21: -0.059 | D21: -0.079 | E21: 10.47 | F21: -0.037 | G21: -0.081 | H21: 12.11 | I21: -0.014 | J21: -0.084 | K21: Louisville
A22: Breckinridge West | B22: 9.23 | C22: -0.064 | D22: -0.074 | E22: 10.53 | F22: -0.061 | G22: -0.072 | H22: 12.44 | I22: -0.059 | J22: -0.071 | K22: Evansville
A23: Bullitt | B23: 9.37 | C23: -0.059 | D23: -0.079 | E23: 10.47 | F23: -0.037 | G23: -0.081 | H23: 12.11 | I23: -0.014 | J23: -0.084 | K23: Louisville
A24: Butler North | B24: 9.23 | C24: -0.064 | D24: -0.074 | E24: 10.53 | F24: -0.061 | G24: -0.072 | H24: 12.44 | I24: -0.059 | J24: -0.071 | K24: Evansville
A25: Butler South | B25: 11.68 | C25: -0.182 | D25: -0.059 | E25: 13.89 | F25: -0.205 | G25: -0.054 | H25: 17.17 | I25: -0.229 | J25: -0.049 | K25: Nashville
A26: Caldwell East | B26: 9.23 | C26: -0.064 | D26: -0.074 | E26: 10.53 | F26: -0.061 | G26: -0.072 | H26: 12.44 | I26: -0.059 | J26: -0.071 | K26: Evansville
A27: Caldwell West | B27: 9.45 | C27: -0.04 | D27: -0.074 | E27: 10.95 | F27: -0.043 | G27: -0.072 | H27: 13.17 | I27: -0.047 | J27: -0.07 | K27: Cairo
A28: Calloway | B28: 9.45 | C28: -0.04 | D28: -0.074 | E28: 10.95 | F28: -0.043 | G28: -0.072 | H28: 13.17 | I28: -0.047 | J28: -0.07 | K28: Cairo
A29: Campbell | B29: 8.53 | C29: 0 | D29: -0.088 | E29: 9.26 | F29: 0.038 | G29: -0.092 | H29: 10.37 | I29: 0.079 | J29: -0.097 | K29: Cincinnati
A30: Carlisle | B30: 9.45 | C30: -0.04 | D30: -0.074 | E30: 10.95 | F30: -0.043 | G30: -0.072 | H30: 13.17 | I30: -0.047 | J30: -0.07 | K30: Cairo
A31: Carroll East | B31: 8.53 | C31: 0 | D31: -0.088 | E31: 9.26 | F31: 0.038 | G31: -0.092 | H31: 10.37 | I31: 0.079 | J31: -0.097 | K31: Cincinnati
A32: Carroll West | B32: 9.37 | C32: -0.059 | D32: -0.079 | E32: 10.47 | F32: -0.037 | G32: -0.081 | H32: 12.11 | I32: -0.014 | J32: -0.084 | K32: Louisville
A33: Carter | B33: 6.96 | C33: 0.086 | D33: -0.093 | E33: 7.64 | F33: 0.114 | G33: -0.095 | H33: 8.66 | I33: 0.145 | J33: -0.097 | K33: Lexington
A34: Casey | B34: 6.96 | C34: 0.086 | D34: -0.093 | E34: 7.64 | F34: 0.114 | G34: -0.095 | H34: 8.66 | I34: 0.145 | J34: -0.097 | K34: Lexington
A35: Christian North | B35: 9.23 | C35: -0.064 | D35: -0.074 | E35: 10.53 | F35: -0.061 | G35: -0.072 | H35: 12.44 | I35: -0.059 | J35: -0.071 | K35: Evansville
A36: Christian South | B36: 11.68 | C36: -0.182 | D36: -0.059 | E36: 13.89 | F36: -0.205 | G36: -0.054 | H36: 17.17 | I36: -0.229 | J36: -0.049 | K36: Nashville
A37: Clark | B37: 6.96 | C37: 0.086 | D37: -0.093 | E37: 7.64 | F37: 0.114 | G37: -0.095 | H37: 8.66 | I37: 0.145 | J37: -0.097 | K37: Lexington
A38: Clay North | B38: 6.96 | C38: 0.086 | D38: -0.093 | E38: 7.64 | F38: 0.114 | G38: -0.095 | H38: 8.66 | I38: 0.145 | J38: -0.097 | K38: Lexington
A39: Clay South | B39: 5.9 | C39: 0.204 | D39: -0.111 | E39: 6.24 | F39: 0.254 | G39: -0.116 | H39: 6.81 | I39: 0.307 | J39: -0.122 | K39: Knoxville
A40: Clinton East | B40: 5.9 | C40: 0.204 | D40: -0.111 | E40: 6.24 | F40: 0.254 | G40: -0.116 | H40: 6.81 | I40: 0.307 | J40: -0.122 | K40: Knoxville
A41: Clinton North | B41: 6.96 | C41: 0.086 | D41: -0.093 | E41: 7.64 | F41: 0.114 | G41: -0.095 | H41: 8.66 | I41: 0.145 | J41: -0.097 | K41: Lexington
A42: Clinton West | B42: 11.68 | C42: -0.182 | D42: -0.059 | E42: 13.89 | F42: -0.205 | G42: -0.054 | H42: 17.17 | I42: -0.229 | J42: -0.049 | K42: Nashville
A43: Crittenden East | B43: 9.23 | C43: -0.064 | D43: -0.074 | E43: 10.53 | F43: -0.061 | G43: -0.072 | H43: 12.44 | I43: -0.059 | J43: -0.071 | K43: Evansville
A44: Crittenden West | B44: 9.45 | C44: -0.04 | D44: -0.074 | E44: 10.95 | F44: -0.043 | G44: -0.072 | H44: 13.17 | I44: -0.047 | J44: -0.07 | K44: Cairo
A45: Cumberland NE | B45: 6.96 | C45: 0.086 | D45: -0.093 | E45: 7.64 | F45: 0.114 | G45: -0.095 | H45: 8.66 | I45: 0.145 | J45: -0.097 | K45: Lexington
A46: Cumberland North | B46: 9.37 | C46: -0.059 | D46: -0.079 | E46: 10.47 | F46: -0.037 | G46: -0.081 | H46: 12.11 | I46: -0.014 | J46: -0.084 | K46: Louisville
A47: Cumberland South | B47: 11.68 | C47: -0.182 | D47: -0.059 | E47: 13.89 | F47: -0.205 | G47: -0.054 | H47: 17.17 | I47: -0.229 | J47: -0.049 | K47: Nashville
A48: Daviess | B48: 9.23 | C48: -0.064 | D48: -0.074 | E48: 10.53 | F48: -0.061 | G48: -0.072 | H48: 12.44 | I48: -0.059 | J48: -0.071 | K48: Evansville
A49: Edmonson North | B49: 9.37 | C49: -0.059 | D49: -0.079 | E49: 10.47 | F49: -0.037 | G49: -0.081 | H49: 12.11 | I49: -0.014 | J49: -0.084 | K49: Louisville
A50: Edmonson South | B50: 11.68 | C50: -0.182 | D50: -0.059 | E50: 13.89 | F50: -0.205 | G50: -0.054 | H50: 17.17 | I50: -0.229 | J50: -0.049 | K50: Nashville
A51: Edmonson West | B51: 9.23 | C51: -0.064 | D51: -0.074 | E51: 10.53 | F51: -0.061 | G51: -0.072 | H51: 12.44 | I51: -0.059 | J51: -0.071 | K51: Evansville
A52: Elliott | B52: 6.96 | C52: 0.086 | D52: -0.093 | E52: 7.64 | F52: 0.114 | G52: -0.095 | H52: 8.66 | I52: 0.145 | J52: -0.097 | K52: Lexington
A53: Estill | B53: 6.96 | C53: 0.086 | D53: -0.093 | E53: 7.64 | F53: 0.114 | G53: -0.095 | H53: 8.66 | I53: 0.145 | J53: -0.097 | K53: Lexington
A54: Fayette | B54: 6.96 | C54: 0.086 | D54: -0.093 | E54: 7.64 | F54: 0.114 | G54: -0.095 | H54: 8.66 | I54: 0.145 | J54: -0.097 | K54: Lexington
A55: Fleming | B55: 6.96 | C55: 0.086 | D55: -0.093 | E55: 7.64 | F55: 0.114 | G55: -0.095 | H55: 8.66 | I55: 0.145 | J55: -0.097 | K55: Lexington
A56: Floyd East | B56: 6.9 | C56: 0.085 | D56: -0.096 | E56: 7.45 | F56: 0.128 | G56: -0.101 | H56: 8.32 | I56: 0.174 | J56: -0.106 | K56: Wytheville
A57: Floyd West | B57: 6.96 | C57: 0.086 | D57: -0.093 | E57: 7.64 | F57: 0.114 | G57: -0.095 | H57: 8.66 | I57: 0.145 | J57: -0.097 | K57: Lexington
A58: Franklin | B58: 6.96 | C58: 0.086 | D58: -0.093 | E58: 7.64 | F58: 0.114 | G58: -0.095 | H58: 8.66 | I58: 0.145 | J58: -0.097 | K58: Lexington
A59: Fulton | B59: 9.45 | C59: -0.04 | D59: -0.074 | E59: 10.95 | F59: -0.043 | G59: -0.072 | H59: 13.17 | I59: -0.047 | J59: -0.07 | K59: Cairo
A60: Gallatin | B60: 8.53 | C60: 0 | D60: -0.088 | E60: 9.26 | F60: 0.038 | G60: -0.092 | H60: 10.37 | I60: 0.079 | J60: -0.097 | K60: Cincinnati
A61: Garrard | B61: 6.96 | C61: 0.086 | D61: -0.093 | E61: 7.64 | F61: 0.114 | G61: -0.095 | H61: 8.66 | I61: 0.145 | J61: -0.097 | K61: Lexington
A62: Grant North | B62: 8.53 | C62: 0 | D62: -0.088 | E62: 9.26 | F62: 0.038 | G62: -0.092 | H62: 10.37 | I62: 0.079 | J62: -0.097 | K62: Cincinnati
A63: Grant South | B63: 6.96 | C63: 0.086 | D63: -0.093 | E63: 7.64 | F63: 0.114 | G63: -0.095 | H63: 8.66 | I63: 0.145 | J63: -0.097 | K63: Lexington
A64: Graves | B64: 9.45 | C64: -0.04 | D64: -0.074 | E64: 10.95 | F64: -0.043 | G64: -0.072 | H64: 13.17 | I64: -0.047 | J64: -0.07 | K64: Cairo
A65: Grayson East | B65: 9.37 | C65: -0.059 | D65: -0.079 | E65: 10.47 | F65: -0.037 | G65: -0.081 | H65: 12.11 | I65: -0.014 | J65: -0.084 | K65: Louisville
A66: Grayson West | B66: 9.23 | C66: -0.064 | D66: -0.074 | E66: 10.53 | F66: -0.061 | G66: -0.072 | H66: 12.44 | I66: -0.059 | J66: -0.071 | K66: Evansville
A67: Green | B67: 9.37 | C67: -0.059 | D67: -0.079 | E67: 10.47 | F67: -0.037 | G67: -0.081 | H67: 12.11 | I67: -0.014 | J67: -0.084 | K67: Louisville
A68: Greenup East | B68: 9.25 | C68: -0.04 | D68: -0.088 | E68: 10.72 | F68: -0.039 | G68: -0.087 | H68: 12.91 | I68: -0.038 | J68: -0.086 | K68: Parkersburg
A69: Greenup North | B69: 8.53 | C69: 0 | D69: -0.088 | E69: 9.26 | F69: 0.038 | G69: -0.092 | H69: 10.37 | I69: 0.079 | J69: -0.097 | K69: Cincinnati
A70: Greenup West | B70: 6.96 | C70: 0.086 | D70: -0.093 | E70: 7.64 | F70: 0.114 | G70: -0.095 | H70: 8.66 | I70: 0.145 | J70: -0.097 | K70: Lexington
A71: Hancock | B71: 9.23 | C71: -0.064 | D71: -0.074 | E71: 10.53 | F71: -0.061 | G71: -0.072 | H71: 12.44 | I71: -0.059 | J71: -0.071 | K71: Evansville
A72: Hardin | B72: 9.37 | C72: -0.059 | D72: -0.079 | E72: 10.47 | F72: -0.037 | G72: -0.081 | H72: 12.11 | I72: -0.014 | J72: -0.084 | K72: Louisville
A73: Harlan | B73: 5.9 | C73: 0.204 | D73: -0.111 | E73: 6.24 | F73: 0.254 | G73: -0.116 | H73: 6.81 | I73: 0.307 | J73: -0.122 | K73: Knoxville
A74: Harrison | B74: 6.96 | C74: 0.086 | D74: -0.093 | E74: 7.64 | F74: 0.114 | G74: -0.095 | H74: 8.66 | I74: 0.145 | J74: -0.097 | K74: Lexington
A75: Hart | B75: 9.37 | C75: -0.059 | D75: -0.079 | E75: 10.47 | F75: -0.037 | G75: -0.081 | H75: 12.11 | I75: -0.014 | J75: -0.084 | K75: Louisville
A76: Henderson | B76: 9.23 | C76: -0.064 | D76: -0.074 | E76: 10.53 | F76: -0.061 | G76: -0.072 | H76: 12.44 | I76: -0.059 | J76: -0.071 | K76: Evansville
A77: Henry East | B77: 6.96 | C77: 0.086 | D77: -0.093 | E77: 7.64 | F77: 0.114 | G77: -0.095 | H77: 8.66 | I77: 0.145 | J77: -0.097 | K77: Lexington
A78: Henry West | B78: 9.37 | C78: -0.059 | D78: -0.079 | E78: 10.47 | F78: -0.037 | G78: -0.081 | H78: 12.11 | I78: -0.014 | J78: -0.084 | K78: Louisville
A79: Hickman | B79: 9.45 | C79: -0.04 | D79: -0.074 | E79: 10.95 | F79: -0.043 | G79: -0.072 | H79: 13.17 | I79: -0.047 | J79: -0.07 | K79: Cairo
A80: Jackson | B80: 6.96 | C80: 0.086 | D80: -0.093 | E80: 7.64 | F80: 0.114 | G80: -0.095 | H80: 8.66 | I80: 0.145 | J80: -0.097 | K80: Lexington
A81: Jefferson | B81: 9.37 | C81: -0.059 | D81: -0.079 | E81: 10.47 | F81: -0.037 | G81: -0.081 | H81: 12.11 | I81: -0.014 | J81: -0.084 | K81: Louisville
A82: Jessamine | B82: 6.96 | C82: 0.086 | D82: -0.093 | E82: 7.64 | F82: 0.114 | G82: -0.095 | H82: 8.66 | I82: 0.145 | J82: -0.097 | K82: Lexington
A83: Johnson | B83: 6.96 | C83: 0.086 | D83: -0.093 | E83: 7.64 | F83: 0.114 | G83: -0.095 | H83: 8.66 | I83: 0.145 | J83: -0.097 | K83: Lexington
A84: Kenton | B84: 8.53 | C84: 0 | D84: -0.088 | E84: 9.26 | F84: 0.038 | G84: -0.092 | H84: 10.37 | I84: 0.079 | J84: -0.097 | K84: Cincinnati
A85: Knott East | B85: 6.9 | C85: 0.085 | D85: -0.096 | E85: 7.45 | F85: 0.128 | G85: -0.101 | H85: 8.32 | I85: 0.174 | J85: -0.106 | K85: Wytheville
A86: Knott South | B86: 5.9 | C86: 0.204 | D86: -0.111 | E86: 6.24 | F86: 0.254 | G86: -0.116 | H86: 6.81 | I86: 0.307 | J86: -0.122 | K86: Knoxville
A87: Knott West | B87: 6.96 | C87: 0.086 | D87: -0.093 | E87: 7.64 | F87: 0.114 | G87: -0.095 | H87: 8.66 | I87: 0.145 | J87: -0.097 | K87: Lexington
A88: Knox | B88: 5.9 | C88: 0.204 | D88: -0.111 | E88: 6.24 | F88: 0.254 | G88: -0.116 | H88: 6.81 | I88: 0.307 | J88: -0.122 | K88: Knoxville
A89: Larue | B89: 9.37 | C89: -0.059 | D89: -0.079 | E89: 10.47 | F89: -0.037 | G89: -0.081 | H89: 12.11 | I89: -0.014 | J89: -0.084 | K89: Louisville
A90: Laurel North | B90: 6.96 | C90: 0.086 | D90: -0.093 | E90: 7.64 | F90: 0.114 | G90: -0.095 | H90: 8.66 | I90: 0.145 | J90: -0.097 | K90: Lexington
A91: Laurel South | B91: 5.9 | C91: 0.204 | D91: -0.111 | E91: 6.24 | F91: 0.254 | G91: -0.116 | H91: 6.81 | I91: 0.307 | J91: -0.122 | K91: Knoxville
A92: Lawrence East | B92: 9.25 | C92: -0.04 | D92: -0.088 | E92: 10.72 | F92: -0.039 | G92: -0.087 | H92: 12.91 | I92: -0.038 | J92: -0.086 | K92: Parkersburg
A93: Lawrence South | B93: 6.9 | C93: 0.085 | D93: -0.096 | E93: 7.45 | F93: 0.128 | G93: -0.101 | H93: 8.32 | I93: 0.174 | J93: -0.106 | K93: Wytheville
A94: Lawrence West | B94: 6.96 | C94: 0.086 | D94: -0.093 | E94: 7.64 | F94: 0.114 | G94: -0.095 | H94: 8.66 | I94: 0.145 | J94: -0.097 | K94: Lexington
A95: Lee | B95: 6.96 | C95: 0.086 | D95: -0.093 | E95: 7.64 | F95: 0.114 | G95: -0.095 | H95: 8.66 | I95: 0.145 | J95: -0.097 | K95: Lexington
A96: Leslie North | B96: 6.96 | C96: 0.086 | D96: -0.093 | E96: 7.64 | F96: 0.114 | G96: -0.095 | H96: 8.66 | I96: 0.145 | J96: -0.097 | K96: Lexington
A97: Leslie South | B97: 5.9 | C97: 0.204 | D97: -0.111 | E97: 6.24 | F97: 0.254 | G97: -0.116 | H97: 6.81 | I97: 0.307 | J97: -0.122 | K97: Knoxville
A98: Letcher East | B98: 6.9 | C98: 0.085 | D98: -0.096 | E98: 7.45 | F98: 0.128 | G98: -0.101 | H98: 8.32 | I98: 0.174 | J98: -0.106 | K98: Wytheville
A99: Letcher West | B99: 5.9 | C99: 0.204 | D99: -0.111 | E99: 6.24 | F99: 0.254 | G99: -0.116 | H99: 6.81 | I99: 0.307 | J99: -0.122 | K99: Knoxville
A100: Lewis North | B100: 8.53 | C100: 0 | D100: -0.088 | E100: 9.26 | F100: 0.038 | G100: -0.092 | H100: 10.37 | I100: 0.079 | J100: -0.097 | K100: Cincinnati
A101: Lewis South | B101: 6.96 | C101: 0.086 | D101: -0.093 | E101: 7.64 | F101: 0.114 | G101: -0.095 | H101: 8.66 | I101: 0.145 | J101: -0.097 | K101: Lexington
A102: Lincoln | B102: 6.96 | C102: 0.086 | D102: -0.093 | E102: 7.64 | F102: 0.114 | G102: -0.095 | H102: 8.66 | I102: 0.145 | J102: -0.097 | K102: Lexington
A103: Livingston | B103: 9.45 | C103: -0.04 | D103: -0.074 | E103: 10.95 | F103: -0.043 | G103: -0.072 | H103: 13.17 | I103: -0.047 | J103: -0.07 | K103: Cairo
A104: Logan | B104: 11.68 | C104: -0.182 | D104: -0.059 | E104: 13.89 | F104: -0.205 | G104: -0.054 | H104: 17.17 | I104: -0.229 | J104: -0.049 | K104: Nashville
A105: Lyon | B105: 9.45 | C105: -0.04 | D105: -0.074 | E105: 10.95 | F105: -0.043 | G105: -0.072 | H105: 13.17 | I105: -0.047 | J105: -0.07 | K105: Cairo
A106: Madison | B106: 6.96 | C106: 0.086 | D106: -0.093 | E106: 7.64 | F106: 0.114 | G106: -0.095 | H106: 8.66 | I106: 0.145 | J106: -0.097 | K106: Lexington
A107: Magoffin | B107: 6.96 | C107: 0.086 | D107: -0.093 | E107: 7.64 | F107: 0.114 | G107: -0.095 | H107: 8.66 | I107: 0.145 | J107: -0.097 | K107: Lexington
A108: Marion East | B108: 6.96 | C108: 0.086 | D108: -0.093 | E108: 7.64 | F108: 0.114 | G108: -0.095 | H108: 8.66 | I108: 0.145 | J108: -0.097 | K108: Lexington
A109: Marion West | B109: 9.37 | C109: -0.059 | D109: -0.079 | E109: 10.47 | F109: -0.037 | G109: -0.081 | H109: 12.11 | I109: -0.014 | J109: -0.084 | K109: Louisville
A110: Marshall | B110: 9.45 | C110: -0.04 | D110: -0.074 | E110: 10.95 | F110: -0.043 | G110: -0.072 | H110: 13.17 | I110: -0.047 | J110: -0.07 | K110: Cairo
A111: Martin East | B111: 6.9 | C111: 0.085 | D111: -0.096 | E111: 7.45 | F111: 0.128 | G111: -0.101 | H111: 8.32 | I111: 0.174 | J111: -0.106 | K111: Wytheville
A112: Martin West | B112: 6.96 | C112: 0.086 | D112: -0.093 | E112: 7.64 | F112: 0.114 | G112: -0.095 | H112: 8.66 | I112: 0.145 | J112: -0.097 | K112: Lexington
A113: Mason North | B113: 8.53 | C113: 0 | D113: -0.088 | E113: 9.26 | F113: 0.038 | G113: -0.092 | H113: 10.37 | I113: 0.079 | J113: -0.097 | K113: Cincinnati
A114: Mason South | B114: 6.96 | C114: 0.086 | D114: -0.093 | E114: 7.64 | F114: 0.114 | G114: -0.095 | H114: 8.66 | I114: 0.145 | J114: -0.097 | K114: Lexington
A115: McCracken | B115: 9.45 | C115: -0.04 | D115: -0.074 | E115: 10.95 | F115: -0.043 | G115: -0.072 | H115: 13.17 | I115: -0.047 | J115: -0.07 | K115: Cairo
A116: McCreary | B116: 5.9 | C116: 0.204 | D116: -0.111 | E116: 6.24 | F116: 0.254 | G116: -0.116 | H116: 6.81 | I116: 0.307 | J116: -0.122 | K116: Knoxville
A117: McLean | B117: 9.23 | C117: -0.064 | D117: -0.074 | E117: 10.53 | F117: -0.061 | G117: -0.072 | H117: 12.44 | I117: -0.059 | J117: -0.071 | K117: Evansville
A118: Meade | B118: 9.37 | C118: -0.059 | D118: -0.079 | E118: 10.47 | F118: -0.037 | G118: -0.081 | H118: 12.11 | I118: -0.014 | J118: -0.084 | K118: Louisville
A119: Menifee | B119: 6.96 | C119: 0.086 | D119: -0.093 | E119: 7.64 | F119: 0.114 | G119: -0.095 | H119: 8.66 | I119: 0.145 | J119: -0.097 | K119: Lexington
A120: Mercer | B120: 6.96 | C120: 0.086 | D120: -0.093 | E120: 7.64 | F120: 0.114 | G120: -0.095 | H120: 8.66 | I120: 0.145 | J120: -0.097 | K120: Lexington
A121: Metcalfe North | B121: 9.37 | C121: -0.059 | D121: -0.079 | E121: 10.47 | F121: -0.037 | G121: -0.081 | H121: 12.11 | I121: -0.014 | J121: -0.084 | K121: Louisville
A122: Metcalfe South | B122: 11.68 | C122: -0.182 | D122: -0.059 | E122: 13.89 | F122: -0.205 | G122: -0.054 | H122: 17.17 | I122: -0.229 | J122: -0.049 | K122: Nashville
A123: Monroe | B123: 11.68 | C123: -0.182 | D123: -0.059 | E123: 13.89 | F123: -0.205 | G123: -0.054 | H123: 17.17 | I123: -0.229 | J123: -0.049 | K123: Nashville
A124: Montgomery | B124: 6.96 | C124: 0.086 | D124: -0.093 | E124: 7.64 | F124: 0.114 | G124: -0.095 | H124: 8.66 | I124: 0.145 | J124: -0.097 | K124: Lexington
A125: Morgan | B125: 6.96 | C125: 0.086 | D125: -0.093 | E125: 7.64 | F125: 0.114 | G125: -0.095 | H125: 8.66 | I125: 0.145 | J125: -0.097 | K125: Lexington
A126: Muhlenberg South | B126: 11.68 | C126: -0.182 | D126: -0.059 | E126: 13.89 | F126: -0.205 | G126: -0.054 | H126: 17.17 | I126: -0.229 | J126: -0.049 | K126: Nashville
A127: Muhlenburg North | B127: 9.23 | C127: -0.064 | D127: -0.074 | E127: 10.53 | F127: -0.061 | G127: -0.072 | H127: 12.44 | I127: -0.059 | J127: -0.071 | K127: Evansville
A128: Nelson | B128: 9.37 | C128: -0.059 | D128: -0.079 | E128: 10.47 | F128: -0.037 | G128: -0.081 | H128: 12.11 | I128: -0.014 | J128: -0.084 | K128: Louisville
A129: Nicholas | B129: 6.96 | C129: 0.086 | D129: -0.093 | E129: 7.64 | F129: 0.114 | G129: -0.095 | H129: 8.66 | I129: 0.145 | J129: -0.097 | K129: Lexington
A130: Ohio | B130: 9.23 | C130: -0.064 | D130: -0.074 | E130: 10.53 | F130: -0.061 | G130: -0.072 | H130: 12.44 | I130: -0.059 | J130: -0.071 | K130: Evansville
A131: Oldham | B131: 9.37 | C131: -0.059 | D131: -0.079 | E131: 10.47 | F131: -0.037 | G131: -0.081 | H131: 12.11 | I131: -0.014 | J131: -0.084 | K131: Louisville
A132: Owen North | B132: 8.53 | C132: 0 | D132: -0.088 | E132: 9.26 | F132: 0.038 | G132: -0.092 | H132: 10.37 | I132: 0.079 | J132: -0.097 | K132: Cincinnati
A133: Owen South | B133: 6.96 | C133: 0.086 | D133: -0.093 | E133: 7.64 | F133: 0.114 | G133: -0.095 | H133: 8.66 | I133: 0.145 | J133: -0.097 | K133: Lexington
A134: Owen West | B134: 9.37 | C134: -0.059 | D134: -0.079 | E134: 10.47 | F134: -0.037 | G134: -0.081 | H134: 12.11 | I134: -0.014 | J134: -0.084 | K134: Louisville
A135: Owsley | B135: 6.96 | C135: 0.086 | D135: -0.093 | E135: 7.64 | F135: 0.114 | G135: -0.095 | H135: 8.66 | I135: 0.145 | J135: -0.097 | K135: Lexington
A136: Pendleton North | B136: 8.53 | C136: 0 | D136: -0.088 | E136: 9.26 | F136: 0.038 | G136: -0.092 | H136: 10.37 | I136: 0.079 | J136: -0.097 | K136: Cincinnati
A137: Pendleton South | B137: 6.96 | C137: 0.086 | D137: -0.093 | E137: 7.64 | F137: 0.114 | G137: -0.095 | H137: 8.66 | I137: 0.145 | J137: -0.097 | K137: Lexington
A138: Perry North | B138: 6.96 | C138: 0.086 | D138: -0.093 | E138: 7.64 | F138: 0.114 | G138: -0.095 | H138: 8.66 | I138: 0.145 | J138: -0.097 | K138: Lexington
A139: Perry South | B139: 5.9 | C139: 0.204 | D139: -0.111 | E139: 6.24 | F139: 0.254 | G139: -0.116 | H139: 6.81 | I139: 0.307 | J139: -0.122 | K139: Knoxville
A140: Pike | B140: 6.9 | C140: 0.085 | D140: -0.096 | E140: 7.45 | F140: 0.128 | G140: -0.101 | H140: 8.32 | I140: 0.174 | J140: -0.106 | K140: Wytheville
A141: Powell | B141: 6.96 | C141: 0.086 | D141: -0.093 | E141: 7.64 | F141: 0.114 | G141: -0.095 | H141: 8.66 | I141: 0.145 | J141: -0.097 | K141: Lexington
A142: Pulaski North | B142: 6.96 | C142: 0.086 | D142: -0.093 | E142: 7.64 | F142: 0.114 | G142: -0.095 | H142: 8.66 | I142: 0.145 | J142: -0.097 | K142: Lexington
A143: Pulaski South | B143: 5.9 | C143: 0.204 | D143: -0.111 | E143: 6.24 | F143: 0.254 | G143: -0.116 | H143: 6.81 | I143: 0.307 | J143: -0.122 | K143: Knoxville
A144: Robertson | B144: 6.96 | C144: 0.086 | D144: -0.093 | E144: 7.64 | F144: 0.114 | G144: -0.095 | H144: 8.66 | I144: 0.145 | J144: -0.097 | K144: Lexington
A145: Rockcastle | B145: 6.96 | C145: 0.086 | D145: -0.093 | E145: 7.64 | F145: 0.114 | G145: -0.095 | H145: 8.66 | I145: 0.145 | J145: -0.097 | K145: Lexington
A146: Rowan | B146: 6.96 | C146: 0.086 | D146: -0.093 | E146: 7.64 | F146: 0.114 | G146: -0.095 | H146: 8.66 | I146: 0.145 | J146: -0.097 | K146: Lexington
A147: Russell North | B147: 6.96 | C147: 0.086 | D147: -0.093 | E147: 7.64 | F147: 0.114 | G147: -0.095 | H147: 8.66 | I147: 0.145 | J147: -0.097 | K147: Lexington
A148: Russell South | B148: 5.9 | C148: 0.204 | D148: -0.111 | E148: 6.24 | F148: 0.254 | G148: -0.116 | H148: 6.81 | I148: 0.307 | J148: -0.122 | K148: Knoxville
A149: Scott | B149: 6.96 | C149: 0.086 | D149: -0.093 | E149: 7.64 | F149: 0.114 | G149: -0.095 | H149: 8.66 | I149: 0.145 | J149: -0.097 | K149: Lexington
A150: Shelby East | B150: 6.96 | C150: 0.086 | D150: -0.093 | E150: 7.64 | F150: 0.114 | G150: -0.095 | H150: 8.66 | I150: 0.145 | J150: -0.097 | K150: Lexington
A151: Shelby West | B151: 9.37 | C151: -0.059 | D151: -0.079 | E151: 10.47 | F151: -0.037 | G151: -0.081 | H151: 12.11 | I151: -0.014 | J151: -0.084 | K151: Louisville
A152: Simpson | B152: 11.68 | C152: -0.182 | D152: -0.059 | E152: 13.89 | F152: -0.205 | G152: -0.054 | H152: 17.17 | I152: -0.229 | J152: -0.049 | K152: Nashville
A153: Spencer | B153: 9.37 | C153: -0.059 | D153: -0.079 | E153: 10.47 | F153: -0.037 | G153: -0.081 | H153: 12.11 | I153: -0.014 | J153: -0.084 | K153: Louisville
A154: Taylor East | B154: 6.96 | C154: 0.086 | D154: -0.093 | E154: 7.64 | F154: 0.114 | G154: -0.095 | H154: 8.66 | I154: 0.145 | J154: -0.097 | K154: Lexington
A155: Taylor West | B155: 9.37 | C155: -0.059 | D155: -0.079 | E155: 10.47 | F155: -0.037 | G155: -0.081 | H155: 12.11 | I155: -0.014 | J155: -0.084 | K155: Louisville
A156: Todd | B156: 11.68 | C156: -0.182 | D156: -0.059 | E156: 13.89 | F156: -0.205 | G156: -0.054 | H156: 17.17 | I156: -0.229 | J156: -0.049 | K156: Nashville
A157: Trigg East | B157: 11.68 | C157: -0.182 | D157: -0.059 | E157: 13.89 | F157: -0.205 | G157: -0.054 | H157: 17.17 | I157: -0.229 | J157: -0.049 | K157: Nashville
A158: Trigg North | B158: 9.23 | C158: -0.064 | D158: -0.074 | E158: 10.53 | F158: -0.061 | G158: -0.072 | H158: 12.44 | I158: -0.059 | J158: -0.071 | K158: Evansville
A159: Trigg West | B159: 9.45 | C159: -0.04 | D159: -0.074 | E159: 10.95 | F159: -0.043 | G159: -0.072 | H159: 13.17 | I159: -0.047 | J159: -0.07 | K159: Cairo
A160: Trimble | B160: 9.37 | C160: -0.059 | D160: -0.079 | E160: 10.47 | F160: -0.037 | G160: -0.081 | H160: 12.11 | I160: -0.014 | J160: -0.084 | K160: Louisville
A161: Union | B161: 9.23 | C161: -0.064 | D161: -0.074 | E161: 10.53 | F161: -0.061 | G161: -0.072 | H161: 12.44 | I161: -0.059 | J161: -0.071 | K161: Evansville
A162: Warren | B162: 11.68 | C162: -0.182 | D162: -0.059 | E162: 13.89 | F162: -0.205 | G162: -0.054 | H162: 17.17 | I162: -0.229 | J162: -0.049 | K162: Nashville
A163: Washington East | B163: 6.96 | C163: 0.086 | D163: -0.093 | E163: 7.64 | F163: 0.114 | G163: -0.095 | H163: 8.66 | I163: 0.145 | J163: -0.097 | K163: Lexington
A164: Washington West | B164: 9.37 | C164: -0.059 | D164: -0.079 | E164: 10.47 | F164: -0.037 | G164: -0.081 | H164: 12.11 | I164: -0.014 | J164: -0.084 | K164: Louisville
A165: Wayne North | B165: 6.96 | C165: 0.086 | D165: -0.093 | E165: 7.64 | F165: 0.114 | G165: -0.095 | H165: 8.66 | I165: 0.145 | J165: -0.097 | K165: Lexington
A166: Wayne South | B166: 5.9 | C166: 0.204 | D166: -0.111 | E166: 6.24 | F166: 0.254 | G166: -0.116 | H166: 6.81 | I166: 0.307 | J166: -0.122 | K166: Knoxville
A167: Webster | B167: 9.23 | C167: -0.064 | D167: -0.074 | E167: 10.53 | F167: -0.061 | G167: -0.072 | H167: 12.44 | I167: -0.059 | J167: -0.071 | K167: Evansville
A168: Whitley | B168: 5.9 | C168: 0.204 | D168: -0.111 | E168: 6.24 | F168: 0.254 | G168: -0.116 | H168: 6.81 | I168: 0.307 | J168: -0.122 | K168: Knoxville
A169: Wolfe | B169: 6.96 | C169: 0.086 | D169: -0.093 | E169: 7.64 | F169: 0.114 | G169: -0.095 | H169: 8.66 | I169: 0.145 | J169: -0.097 | K169: Lexington
A170: Woodford | B170: 6.96 | C170: 0.086 | D170: -0.093 | E170: 7.64 | F170: 0.114 | G170: -0.095 | H170: 8.66 | I170: 0.145 | J170: -0.097 | K170: Lexington

Sheet NOAA Data2
A1: PDS-based precipitation frequency estimates with 90% confidence intervals (in inches/hour) | M1: LOCATION INFORMATION
A2: Duration | B2: Average recurrence interval(years) | M2: Name: Frenchburg, Kentucky, USA* | Q2: =MID(M2,6,FIND("Kentucky",M2,1)+2) -> Frenchburg, Kentucky | T2: DESIGN STORM | AD2: IDF Variables*
B3: 1 | C3: 2 | D3: 5 | E3: 10 | F3: 25 | G3: 50 | H3: 100 | I3: 200 | J3: 500 | K3: 1000 | S3: tc | T3: 2 | U3: 5 | V3: 10 | W3: 25 | X3: 50 | Y3: 100 | Z3: IDF | AC3: RI | AD3: a | AE3: b | AF3: m
A4: 5-min | B4: 4.28 | C4: 5.09 | D4: 6 | E4: 6.71 | F4: 7.66 | G4: 8.4 | H4: 9.13 | I4: 9.9 | J4: 10.9 | K4: 11.7 | M4: Station name: - | Q4: Lat/Long | S4: 5 | Z4: FHWA | AC4: 2
A5: 10-min | B5: 3.38 | C5: 4.03 | D5: 4.75 | E5: 5.3 | F5: 6.01 | G5: 6.56 | H5: 7.12 | I5: 7.66 | J5: 8.37 | K5: 8.93 | M5: Site ID: - | Q5: =MID(M6,10,10) -> 37.9579° | Z5: NOAA | AC5: 5
A6: 15-min | B6: 2.8 | C6: 3.34 | D6: 3.95 | E6: 4.42 | F6: 5.02 | G6: 5.48 | H6: 5.94 | I6: 6.4 | J6: 6.99 | K6: 7.45 | M6: Latitude: 37.9579° | Q6: =MID(M7,12,10) -> -83.6640° | Z6: Diff | AC6: 10
A7: 30-min | B7: 1.89 | C7: 2.28 | D7: 2.77 | E7: 3.15 | F7: 3.65 | G7: 4.05 | H7: 4.45 | I7: 4.86 | J7: 5.42 | K7: 5.86 | M7: Longitude: -83.6640° | S7: 10 | Z7: FHWA | AC7: 25
A8: 60-min | B8: 1.17 | C8: 1.42 | D8: 1.76 | E8: 2.03 | F8: 2.41 | G8: 2.71 | H8: 3.03 | I8: 3.37 | J8: 3.83 | K8: 4.21 | M8: Elevation: 973 ft ** | Z8: NOAA | AC8: 50
A9: 2-hr | B9: 0.682 | C9: 0.822 | D9: 1.02 | E9: 1.18 | F9: 1.4 | G9: 1.59 | H9: 1.78 | I9: 1.99 | J9: 2.29 | K9: 2.53 | Z9: Diff | AC9: 100
A10: 3-hr | B10: 0.484 | C10: 0.582 | D10: 0.721 | E10: 0.834 | F10: 0.995 | G10: 1.13 | H10: 1.27 | I10: 1.42 | J10: 1.63 | K10: 1.81 | S10: 15 | Z10: FHWA
A11: 6-hr | B11: 0.293 | C11: 0.351 | D11: 0.432 | E11: 0.498 | F11: 0.593 | G11: 0.672 | H11: 0.755 | I11: 0.845 | J11: 0.973 | K11: 1.08 | Z11: NOAA | AC11: * I = a / (tc + b) ^ m
A12: 12-hr | B12: 0.174 | C12: 0.208 | D12: 0.254 | E12: 0.293 | F12: 0.347 | G12: 0.392 | H12: 0.44 | I12: 0.491 | J12: 0.564 | K12: 0.624 | Z12: Diff
A13: 24-hr | B13: 0.106 | C13: 0.126 | D13: 0.152 | E13: 0.173 | F13: 0.203 | G13: 0.227 | H13: 0.251 | I13: 0.277 | J13: 0.312 | K13: 0.34 | S13: 30 | Z13: FHWA
A14: 2-day | B14: 0.064 | C14: 0.076 | D14: 0.091 | E14: 0.104 | F14: 0.121 | G14: 0.134 | H14: 0.148 | I14: 0.162 | J14: 0.181 | K14: 0.196 | Z14: NOAA
A15: 3-day | B15: 0.046 | C15: 0.054 | D15: 0.065 | E15: 0.073 | F15: 0.085 | G15: 0.094 | H15: 0.103 | I15: 0.112 | J15: 0.124 | K15: 0.133 | Z15: Diff
A16: 4-day | B16: 0.037 | C16: 0.043 | D16: 0.052 | E16: 0.058 | F16: 0.067 | G16: 0.074 | H16: 0.08 | I16: 0.087 | J16: 0.096 | K16: 0.102 | S16: 60 | Z16: FHWA
A17: 7-day | B17: 0.025 | C17: 0.03 | D17: 0.036 | E17: 0.04 | F17: 0.046 | G17: 0.051 | H17: 0.055 | I17: 0.06 | J17: 0.067 | K17: 0.071 | Z17: NOAA
A18: 10-day | B18: 0.02 | C18: 0.024 | D18: 0.028 | E18: 0.032 | F18: 0.036 | G18: 0.039 | H18: 0.042 | I18: 0.045 | J18: 0.049 | K18: 0.052
A19: 20-day | B19: 0.014 | C19: 0.017 | D19: 0.02 | E19: 0.022 | F19: 0.024 | G19: 0.026 | H19: 0.028 | I19: 0.03 | J19: 0.032 | K19: 0.033
A20: 30-day | B20: 0.012 | C20: 0.014 | D20: 0.016 | E20: 0.018 | F20: 0.02 | G20: 0.021 | H20: 0.022 | I20: 0.024 | J20: 0.025 | K20: 0.026
A21: 45-day | B21: 0.01 | C21: 0.012 | D21: 0.013 | E21: 0.014 | F21: 0.016 | G21: 0.017 | H21: 0.018 | I21: 0.019 | J21: 0.02 | K21: 0.02
A22: 60-day | B22: 0.009 | C22: 0.011 | D22: 0.012 | E22: 0.013 | F22: 0.014 | G22: 0.015 | H22: 0.016 | I22: 0.016 | J22: 0.017 | K22: 0.018

Sheet FHWA
B2: IDF Variables*
A3: RI | B3: a | C3: b | D3: m
A4: 2 | B4: 52.18307738 | C4: 10.657834 | D4: 0.8460576696
A5: 5 | B5: 45.60614893 | C5: 9.059911231 | D5: 0.7673218803
A6: 10 | B6: 41.62874755 | C6: 7.864586153 | D6: 0.7145067708
A7: 25 | B7: 35.11902535 | C7: 5.898571577 | D7: 0.6374909166
A8: 50 | B8: 32.20504352 | C8: 4.723112378 | D8: 0.5908498377
A9: 100 | B9: 30.21661877 | C9: 3.785925427 | D9: 0.550733169
A11: * I = a / (tc + b) ^ m
B13: DESIGN STORM CHECK
A14: tc | B14: 2 | C14: 5 | D14: 10 | E14: 25 | F14: 50 | G14: 100
A15: 5 | B15: 5.09 | C15: 6 | D15: 6.71 | E15: 7.66 | F15: 8.4 | G15: 9.13
B16: 5.09 | C16: 6 | D16: 6.71 | E16: 7.66 | F16: 8.4 | G16: 9.13
B17: -1.690203533e-12 | C17: -1.181277298e-13 | D17: -4.52970994e-14 | E17: 1.687538997e-14 | F17: -1.652011861e-13 | G17: 1.509903313e-13
A18: 10 | B18: 4.026170107 | C18: 4.750711368 | D18: 5.306838828 | E18: 6.021262683 | F18: 6.573724518 | G18: 7.123947455
B19: 4.03 | C19: 4.75 | D19: 5.3 | E19: 6.01 | F19: 6.56 | G19: 7.12
B20: -0.003829892568 | C20: 0.0007113684685 | D20: 0.006838828104 | E20: 0.01126268283 | F20: 0.01372451781 | G20: 0.003947454567
A21: 15 | B21: 3.351570086 | C21: 3.973070542 | D21: 4.448995149 | E21: 5.058014981 | F21: 5.530798754 | G21: 6.007641435
B22: 3.34 | C22: 3.95 | D22: 4.42 | E22: 5.02 | F22: 5.48 | G22: 5.94
B23: 0.01157008616 | C23: 0.02307054213 | D23: 0.02899514873 | E23: 0.03801498064 | F23: 0.05079875427 | G23: 0.06764143546
A24: 30 | B24: 2.270392078 | C24: 2.739385698 | D24: 3.102666005 | E24: 3.582571653 | F24: 3.959584481 | G24: 4.348308446
B25: 2.28 | C25: 2.77 | D25: 3.15 | E25: 3.65 | F25: 4.05 | G25: 4.45
B26: -0.009607922011 | C26: -0.03061430178 | D26: -0.04733399536 | E26: -0.06742834687 | F26: -0.09041551852 | G26: -0.1016915541
A27: 60 | B27: 1.42243823 | C27: 1.769070076 | D27: 2.04489905 | E27: 2.432346965 | F27: 2.740688906 | G27: 3.064248792
B28: 1.42 | C28: 1.76 | D28: 2.03 | E28: 2.41 | F28: 2.71 | G28: 3.03
B29: 0.002438229749 | C29: 0.009070076473 | D29: 0.01489905012 | E29: 0.02234696543 | F29: 0.03068890568 | G29: 0.03424879183

Sheet Revision Comments
A1: DATE | B1: COMMENT
A2: 2017-01-16 | B2: Reformats the new NOAA data format from the NOAA website so the program can read the data properly. Currently NOAA data intensity and S.D. values paste as merged values into a single cell. This update removes the S.D. values when the macro is executed.
B3: Updated the error and messaging logic.

Sheet Counties (hidden)
A1: Adair | C1: Adair East
A2: Allen | C2: Adair West
A3: Anderson | C3: Allen
A4: Ballard | C4: Anderson East
A5: Barren | C5: Anderson West
A6: Bath | C6: Ballard
A7: Bell | C7: Barren North
A8: Boone | C8: Barren South
A9: Bourbon | C9: Bath
A10: Boyd | C10: Bell
A11: Boyle | C11: Boone
A12: Bracken | C12: Bourbon
A13: Breathitt | C13: Boyd East
A14: Breckinridge | C14: Boyd West
A15: Bullitt | C15: Boyle
A16: Butler | C16: Bracken North
A17: Caldwell | C17: Bracken South
A18: Calloway | C18: Breathitt
A19: Campbell | C19: Breckinridge East
A20: Carlisle | C20: Breckinridge West
A21: Carroll | C21: Bullitt
A22: Carter | C22: Butler North
A23: Casey | C23: Butler South
A24: Christian | C24: Caldwell East
A25: Clark | C25: Caldwell West
A26: Clay | C26: Calloway
A27: Clinton | C27: Campbell
A28: Crittenden | C28: Carlisle
A29: Cumberland | C29: Carroll East
A30: Daviess | C30: Carroll West
A31: Edmonson | C31: Carter
A32: Elliott | C32: Casey
A33: Estill | C33: Christian North
A34: Fayette | C34: Christian South
A35: Fleming | C35: Clark
A36: Floyd | C36: Clay North
A37: Franklin | C37: Clay South
A38: Fulton | C38: Clinton East
A39: Gallatin | C39: Clinton North
A40: Garrard | C40: Clinton West
A41: Grant | C41: Crittenden East
A42: Graves | C42: Crittenden West
A43: Grayson | C43: Cumberland NE
A44: Green | C44: Cumberland North
A45: Greenup | C45: Cumberland South
A46: Hancock | C46: Daviess
A47: Hardin | C47: Edmonson North
A48: Harlan | C48: Edmonson South
A49: Harrison | C49: Edmonson West
A50: Hart | C50: Elliott
A51: Henderson | C51: Estill
A52: Henry | C52: Fayette
A53: Hickman | C53: Fleming
A54: Hopkins | C54: Floyd East
A55: Jackson | C55: Floyd West
A56: Jefferson | C56: Franklin
A57: Jessamine | C57: Fulton
A58: Johnson | C58: Gallatin
A59: Kenton | C59: Garrard
A60: Knott | C60: Grant North
A61: Knox | C61: Grant South
A62: Larue | C62: Graves
A63: Laurel | C63: Grayson East
A64: Lawrence | C64: Grayson West
A65: Lee | C65: Green
A66: Leslie | C66: Greenup East
A67: Letcher | C67: Greenup North
A68: Lewis | C68: Greenup West
A69: Lincoln | C69: Hancock
A70: Livingston | C70: Hardin
A71: Logan | C71: Harlan
A72: Lyon | C72: Harrison
A73: Madison | C73: Hart
A74: Magoffin | C74: Henderson
A75: Marion | C75: Henry East
A76: Marshall | C76: Henry West
A77: Martin | C77: Hickman
A78: Mason | C78: Jackson
A79: McCracken | C79: Jefferson
A80: McCreary | C80: Jessamine
A81: McLean | C81: Johnson
A82: Meade | C82: Kenton
A83: Menifee | C83: Knott East
A84: Mercer | C84: Knott South
A85: Metcalfe | C85: Knott West
A86: Monroe | C86: Knox
A87: Montgomery | C87: Larue
A88: Morgan | C88: Laurel North
A89: Muhlenburg | C89: Laurel South
A90: Nelson | C90: Lawrence East
A91: Nicholas | C91: Lawrence South
A92: Ohio | C92: Lawrence West
A93: Oldham | C93: Lee
A94: Owen | C94: Leslie North
A95: Owsley | C95: Leslie South
A96: Pendleton | C96: Letcher East
A97: Perry | C97: Letcher West
A98: Pike | C98: Lewis North
A99: Powell | C99: Lewis South
A100: Pulaski | C100: Lincoln
A101: Robertson | C101: Livingston
A102: Rockcastle | C102: Logan
A103: Rowan | C103: Lyon
A104: Russell | C104: Madison
A105: Scott | C105: Magoffin
A106: Shelby | C106: Marion East
A107: Simpson | C107: Marion West
A108: Spencer | C108: Marshall
A109: Taylor | C109: Martin East
A110: Todd | C110: Martin West
A111: Trigg | C111: Mason North
A112: Trimble | C112: Mason South
A113: Union | C113: McCracken
A114: Warren | C114: McCreary
A115: Washington | C115: McLean
A116: Wayne | C116: Meade
A117: Webster | C117: Menifee
A118: Whitley | C118: Mercer
A119: Wolfe | C119: Metcalfe North
A120: Woodford | C120: Metcalfe South
C121: Monroe
C122: Montgomery
C123: Morgan
C124: Muhlenberg South
C125: Muhlenburg North
C126: Nelson
C127: Nicholas
C128: Ohio
C129: Oldham
C130: Owen North
C131: Owen South
C132: Owen West
C133: Owsley
C134: Pendleton North
C135: Pendleton South
C136: Perry North
C137: Perry South
C138: Pike
C139: Powell
C140: Pulaski North
C141: Pulaski South
C142: Robertson
C143: Rockcastle
C144: Rowan
C145: Russell North
C146: Russell South
C147: Scott
C148: Shelby East
C149: Shelby West
C150: Simpson
C151: Spencer
C152: Taylor East
C153: Taylor West
C154: Todd
C155: Trigg East
C156: Trigg North
C157: Trigg West
C158: Trimble
C159: Union
C160: Warren
C161: Washington East
C162: Washington West
C163: Wayne North
C164: Wayne South
C165: Webster
C166: Whitley
C167: Wolfe
C168: Woodford

Sheet Updates (hidden)
A1: DATE | B1: DESCRIPTION
A2: 2014-10-01 | B2: Moved county names to separate speadsheet to eliminate accidental deletion and assigned a named range to them so I could use them in Data Validation.
B3: Moved rational area county names to separate speadsheet. No longer used.
